fUSD/lending_fUSD_20251113
["ID","MTS","AMOUNT","RATE_DAILY","PERIOD"]
[393849476,1763041849988,-151.0,0.00040755,120]
[393849477,1763041849997,-256.770024,0.00040755,120]
[393849478,1763041850006,-151.0,0.00040755,120]
[393849479,1763041850015,-151.0,0.00040755,120]
[393849480,1763041850025,-151.0,0.00040755,120]
[393849481,1763041850034,-151.0,0.00040755,120]
[393849482,1763041850043,-151.0,0.00040755,120]
[393849483,1763041850052,-151.0,0.00040755,120]
[393849484,1763041850062,-151.0,0.00040755,120]
[393849485,1763041850074,-151.0,0.00040755,120]
[393849486,1763041850083,-151.0,0.00040755,120]
[393849487,1763041850092,-158.519266,0.00040755,120]
[393849488,1763041850100,-158.519266,0.00040755,120]
[393849489,1763041850110,-158.519266,0.00040755,120]
[393849490,1763041850119,-158.519266,0.00040755,120]
[393849491,1763041850128,-158.519266,0.00040755,120]
[393849492,1763041850137,-158.519266,0.00040755,120]
[393849493,1763041850146,-158.519266,0.00040755,120]
[393849494,1763041850155,-158.519266,0.00040755,120]
[393849495,1763041850164,-158.519266,0.00040755,120]
[393849496,1763041850173,-158.519266,0.00040755,120]
[393849497,1763041850182,-158.519266,0.00040755,120]
[393849498,1763041850192,-158.519266,0.00040755,120]
[393849499,1763041850201,-158.519266,0.00040755,120]
[393849500,1763041850211,-158.519266,0.00040755,120]
[393849501,1763041850220,-158.519266,0.00040755,120]
[393849502,1763041850229,-158.519266,0.00040755,120]
[393849503,1763041850238,-158.519266,0.00040755,120]
[393849504,1763041850247,-158.519266,0.00040755,120]
[393849505,1763041850256,-158.519266,0.00040755,120]
[393849506,1763041850265,-151.0,0.00040755,120]
[393849507,1763041850274,-158.519274,0.00040755,120]
[393849508,1763041850283,-151.0,0.00040755,120]
[393849509,1763041850292,-151.000005,0.00040755,120]
[393849510,1763041850301,-500.0,0.00040755,60]
[393849511,1763041850310,-1007.39,0.00040756,120]
[393849512,1763041850319,-300.0,0.00040774,2]
[393849513,1763041850328,-1007.39,0.00040787,120]
[393849514,1763041850337,-152.0,0.00040797,9]
[393849515,1763041850346,-590.0,0.000408,14]
[393849516,1763041850356,-1007.39,0.00040819,120]
[393849517,1763041850365,-1022.01519638,0.0004082,7]
[393849518,1763041850374,-1022.01519638,0.0004082,7]
[393849519,1763041850383,-980.05,0.00040821,4]
[393849520,1763041850392,-150.0,0.00040822,2]
[393849521,1763041850401,-176.94,0.00040822,2]
[393849522,1763041850410,-549.74,0.00040822,2]
[393849523,1763041850419,-150.0,0.00040822,2]
[393849524,1763041850428,-1207.25,0.00040822,2]
[393849525,1763041850437,-300.0,0.00040822,2]
[393849526,1763041850447,-154.45764357,0.00040822,7]
[393849527,1763041850456,-1200.0,0.0004083,38]
[393849528,1763041850465,-151.0,0.0004083,120]
[393849529,1763041850588,-151.0,0.0004083,120]
[393849530,1763041850599,-151.0,0.0004083,120]
[393849531,1763041850608,-151.0,0.0004083,120]
[393849532,1763041850617,-151.0,0.0004083,120]
[393849533,1763041850627,-280.928827,0.0004083,120]
[393849534,1763041850637,-152.145579,0.0004083,120]
[393849535,1763041850647,-151.0,0.0004083,14]
[393849536,1763041850656,-156.042706,0.0004083,14]
[393849537,1763041850665,-151.0,0.0004083,60]
[393849538,1763041850674,-151.0,0.0004083,30]
[393849539,1763041850684,-151.0,0.0004083,120]
[393849540,1763041850693,-302.011735,0.0004083,30]
[393849541,1763041850703,-302.011735,0.0004083,30]
[393849542,1763041850711,-302.011735,0.0004083,30]
[393849543,1763041850720,-302.011735,0.0004083,30]
[393849544,1763041850730,-302.011735,0.0004083,30]
[393849545,1763041850739,-302.011735,0.0004083,30]
[393849546,1763041850749,-302.011735,0.0004083,30]
[393849547,1763041850758,-302.011735,0.0004083,30]
[393849548,1763041850767,-302.011735,0.0004083,30]
[393849549,1763041850776,-302.011735,0.0004083,30]
[393849550,1763041850785,-302.011735,0.0004083,30]
[393849551,1763041850794,-302.011735,0.0004083,30]
[393849552,1763041850804,-302.011735,0.0004083,30]
[393849553,1763041850813,-302.011735,0.0004083,30]
[393849554,1763041850822,-302.011735,0.0004083,30]
[393849555,1763041850831,-302.011735,0.0004083,30]
[393849556,1763041850841,-302.011735,0.0004083,30]
[393849557,1763041850850,-302.011735,0.0004083,30]
[393849558,1763041850859,-302.011735,0.0004083,30]
[393849559,1763041850868,-302.011731,0.0004083,30]
[393849560,1763041850877,-2886.417422,0.0004083,28]
[393849561,1763041850886,-2886.417422,0.0004083,28]
[393849562,1763041850896,-2886.417422,0.0004083,28]
[393849563,1763041850905,-2886.417422,0.0004083,28]
[393849564,1763041850914,-2886.417422,0.0004083,28]
[393849565,1763041850924,-2886.417422,0.0004083,28]
[393849566,1763041850933,-2886.417422,0.0004083,28]
[393849567,1763041850943,-2886.417422,0.0004083,28]
[393849568,1763041850952,-2886.417422,0.0004083,28]
[393849569,1763041850961,-2886.417422,0.0004083,28]
[393849570,1763041850970,-2886.417422,0.0004083,28]
[393849571,1763041850979,-2886.417422,0.0004083,28]
[393849572,1763041850988,-2886.417422,0.0004083,28]
[393849573,1763041850997,-2886.417422,0.0004083,28]
[393849574,1763041851006,-2886.417422,0.0004083,28]
[393849575,1763041851015,-2886.417422,0.0004083,28]
[393849576,1763041851024,-2886.417422,0.0004083,28]
[393849577,1763041851034,-2886.417422,0.0004083,28]
[393849578,1763041851044,-2886.417422,0.0004083,28]
[393849579,1763041851054,-2886.417414,0.0004083,28]
[393849580,1763041851063,-10996645.74044111,0.0004083,7]
[393849581,1763041851262,-984.039998,0.0004083,7]
[393849582,1763041851277,-163.22012196,0.0004073,28]
[393849583,1763041851286,-126.56180243,0.0004083,7]
[393849584,1763041851450,-175.64,0.00022,2]
[393849585,1763041851460,-7563.55999993,0.0004083,7]
[393849586,1763041851653,-175.64,0.0002453,2]
[393849587,1763041851663,-170.27375766,0.00027059,7]
[393849588,1763041852597,-5.36624234,0.00027059,7]
[393849589,1763041852608,-175.64,0.00029588,30]
[393849590,1763041852617,-175.64,0.00032118,30]
[393849591,1763041852625,-175.64,0.00034648,30]
[393849592,1763041852763,-699.71,0.00035918,2]
[393849593,1763041852773,-175.64,0.00037177,60]
[393849594,1763041852782,-180.69318502,0.00038777,2]
[393849595,1763041852791,-175.64,0.00039706,60]
[393849596,1763041852801,-2948159.40501775,0.0004083,7]
[393849597,1763041852933,-180.69318502,0.00039265,2]
[393849598,1763041852941,-1207.63,0.00040822,2]
[393849599,1763041852948,-75.91220593,0.0004083,7]
[393849600,1763041852958,-1656.06000001,0.0004083,7]
[393849601,1763041853011,-307.66249215,0.0004083,7]
[393849602,1763041853021,-999.19,0.0004083,7]
[393849603,1763041865330,520.0,0.0004083,120]
[393849604,1763041865995,539.24,0.0004083,120]
[393849605,1763041866622,539.24,0.0004083,120]
[393849606,1763041866813,500.0,0.0004083,120]
[393849607,1763041867467,500.0,0.0004083,120]
[393849608,1763041868129,500.0,0.0004083,120]
[393849609,1763041868211,500.0,0.0004083,120]
[393849610,1763041868762,500.0,0.0004083,120]
[393849611,1763041868837,500.0,0.0004083,120]
[393849612,1763041869686,500.0,0.0004083,120]
[393849613,1763041869758,500.0,0.0004083,120]
[393849614,1763041870021,500.0,0.0004083,120]
[393849615,1763041870129,500.0,0.0004083,120]
[393849616,1763041870685,500.0,0.0004083,120]
[393849617,1763041871336,500.0,0.0004083,120]
[393849618,1763041872122,500.0,0.0004083,120]
[393849619,1763041872577,500.0,0.0004083,120]
[393849620,1763041873190,500.0,0.0004083,120]
[393849621,1763041873811,500.0,0.0004083,120]
[393849622,1763041874416,500.0,0.0004083,120]
[393849623,1763041874991,500.0,0.0004083,120]
[393849624,1763041875065,500.0,0.0004083,120]
[393849625,1763041875611,500.0,0.0004083,120]
[393849626,1763041875681,500.0,0.0004083,120]
[393849627,1763041876239,500.0,0.0004083,120]
[393849628,1763041876314,500.0,0.0004083,120]
[393849629,1763041876902,500.0,0.0004083,120]
[393849630,1763041876951,500.0,0.0004083,120]
[393849631,1763041877505,500.0,0.0004083,120]
[393849632,1763041877569,500.0,0.0004083,120]
[393849633,1763041878129,500.0,0.0004083,120]
[393849634,1763041878197,500.0,0.0004083,120]
[393849635,1763041878737,500.0,0.0004083,120]
[393849636,1763041879327,500.0,0.0004083,120]
[393849637,1763041879372,500.0,0.0004083,120]
[393849638,1763041879966,500.0,0.0004083,120]
[393849639,1763041880597,500.0,0.0004083,120]
[393849640,1763041881225,500.0,0.0004083,120]
[393849641,1763041881857,500.0,0.0004083,120]
[393849642,1763041882995,500.0,0.0004083,120]
[393849643,1763041883635,500.0,0.0004083,120]
[393849644,1763041884266,500.0,0.0004083,120]
[393849645,1763041884932,500.0,0.0004083,120]
[393849646,1763041885529,500.0,0.0004083,120]
[393849647,1763041886147,500.0,0.0004083,120]
[393849648,1763041886759,500.0,0.0004083,120]
[393849649,1763041887562,500.0,0.0004083,120]
[393849650,1763041892866,509.3648031,0.00016,2]
[393849651,1763041893145,505.0,0.00016,2]
[393849652,1763041893556,505.0,0.00016,2]
[393849653,1763041893869,505.0,0.00016,2]
[393849654,1763041894140,505.0,0.00016,2]
[393849655,1763041925187,289.70896349,0.0004083,120]
[393849656,1763041926758,195.0,0.00023649,120]
[393849657,1763041926852,195.0,0.00027857,120]
[393849658,1763041927821,250.0,0.0004083,120]
[393849659,1763041928472,500.0,0.0004083,120]
[393849660,1763041928524,250.0,0.0004083,120]
[393849661,1763041928929,500.0,0.0004083,120]
[393849662,1763041928980,500.0,0.0004083,120]
[393849663,1763041929081,250.0,0.0004083,120]
[393849664,1763041929573,500.0,0.0004083,120]
[393849665,1763041929623,500.0,0.0004083,120]
[393849666,1763041929717,250.0,0.0004083,120]
[393849667,1763041930186,500.0,0.0004083,120]
[393849668,1763041930236,500.0,0.0004083,120]
[393849669,1763041930346,250.0,0.0004083,120]
[393849670,1763041930884,500.0,0.0004083,120]
[393849671,1763041930966,524.33710981,0.0004083,120]
[393849672,1763041931014,250.0,0.0004083,120]
[393849673,1763041931491,500.0,0.0004083,120]
[393849674,1763041931572,250.0,0.0004083,120]
[393849675,1763041932178,250.0,0.0004083,120]
[393849676,1763041932263,500.0,0.0004083,120]
[393849677,1763041932627,154.59957346,0.0004083,30]
[393849678,1763041932830,250.0,0.0004083,120]
[393849679,1763041932884,500.0,0.0004083,120]
[393849680,1763041933665,250.0,0.0004083,120]
[393849681,1763041933713,500.0,0.0004083,120]
[393849682,1763041934100,250.0,0.0004083,120]
[393849683,1763041934152,500.0,0.0004083,120]
[393849684,1763041934719,250.0,0.0004083,120]
[393849685,1763041934765,500.0,0.0004083,120]
[393849686,1763041935345,250.0,0.0004083,120]
[393849687,1763041935386,500.0,0.0004083,120]
[393849688,1763041935956,250.0,0.0004083,120]
[393849689,1763041936003,500.0,0.0004083,120]
[393849690,1763041936576,250.0,0.0004083,120]
[393849691,1763041936750,500.0,0.0004083,120]
[393849692,1763041937207,250.0,0.0004083,120]
[393849693,1763041937384,500.0,0.0004083,120]
[393849694,1763041937802,250.0,0.0004083,120]
[393849695,1763041938029,500.0,0.0004083,120]
[393849696,1763041938434,250.0,0.0004083,120]
[393849697,1763041938669,500.0,0.0004083,120]
[393849698,1763041939043,250.0,0.0004083,120]
[393849699,1763041939297,500.0,0.0004083,120]
[393849700,1763041939649,250.0,0.0004083,120]
[393849701,1763041939948,500.0,0.0004083,120]
[393849702,1763041940553,500.0,0.0004083,120]
[393849703,1763041945573,414.0,0.0004083,120]
[393849704,1763041946182,429.318,0.0004083,120]
[393849705,1763041946841,445.202766,0.0004083,120]
[393849706,1763041947466,461.67526834,0.0004083,120]
[393849707,1763041948250,478.75725327,0.0004083,120]
[393849708,1763041948684,496.47127164,0.0004083,120]
[393849709,1763041949330,496.47127164,0.0004083,120]
[393849710,1763041952665,151.0,0.0004083,120]
[393849711,1763041953332,151.0,0.0004083,120]
[393849712,1763041954016,151.0,0.0004083,120]
[393849713,1763041954715,151.0,0.0004083,120]
[393849714,1763041955359,151.0,0.0004083,120]
[393849715,1763041956013,151.0,0.0004083,120]
[393849716,1763041956629,151.0,0.0004083,120]
[393849717,1763041957245,151.0,0.0004083,120]
[393849718,1763041957849,151.0,0.0004083,120]
[393849719,1763041982611,195.0,0.00023649,120]
[393849720,1763042005989,526.999999,0.0004083,120]
[393849722,1763042235860,250.0,0.0004083,120]
[393849723,1763042236492,250.0,0.0004083,120]
[393849724,1763042247175,500.0,0.0004083,120]
[393849725,1763042247821,500.0,0.0004083,120]
[393849726,1763042248604,500.0,0.0004083,120]
[393849727,1763042249266,500.0,0.0004083,120]
[393849728,1763042255588,351.4,0.00016438,2]
[393849731,1763042434300,-261.95553024,0.00018273,2]
[393849732,1763042434401,-81.04446976,0.00018273,2]
[393850806,1763042600515,24152.65,0.00040828,120]
[393854784,1763042889397,917.55,0.00040828,120]
[393854801,1763043031840,-162.45105664,0.00018173,2]
[393854804,1763043031850,-155.63138132,0.00018273,2]
[393854807,1763043031859,-250.0,0.00018273,2]
[393854811,1763043031868,-250.0,0.00018273,2]
[393854813,1763043031878,-150.92577583,0.00018273,2]
[393854815,1763043031887,-359.97,0.00018273,2]
[393854817,1763043031896,-500.0,0.00018273,2]
[393854819,1763043031907,-194.1645191,0.00018273,2]
[393854825,1763043031953,-298.19895225,0.00018273,2]
[393854827,1763043031964,-7.63652865,0.00018273,2]
[393854829,1763043031973,-162.13,0.0001924,2]
[393854831,1763043031983,-1200.0,0.00019989,2]
[393854833,1763043031992,-300.0,0.00019989,2]
[393854835,1763043032001,-300.0,0.00019989,2]
[393854837,1763043032011,-275.96981039,0.0001999,4]
[393854839,1763043032021,-2500.0,0.0001999,2]
[393854841,1763043032031,-195.0,0.0001999,2]
[393854843,1763043032040,-193.70507279,0.0001999,2]
[393854845,1763043032049,-300.0,0.0001999,2]
[393854847,1763043032059,-250.0,0.000201,2]
[393854849,1763043032069,-700.0,0.00021396,2]
[393854851,1763043032079,-2500.0,0.00021397,2]
[393854853,1763043032089,-3757.71,0.00021499,2]
[393854855,1763043032098,-420.0,0.00021766,2]
[393854857,1763043032108,-420.0,0.00021766,2]
[393854859,1763043032117,-1680.0,0.00021871,2]
[393854861,1763043032127,-478.69779641,0.00023565,2]
[393854863,1763043032137,-587.0,0.00023701,2]
[393854866,1763043032147,-587.0,0.00023701,2]
[393854868,1763043032158,-2351.0,0.0002393,2]
[393854869,1763043032167,-297.19062559,0.00024009,2]
[393854872,1763043032177,-571.0,0.00025808,2]
[393854875,1763043032187,-823.0,0.00025808,2]
[393854878,1763043032197,-500.0,0.000261,2]
[393854881,1763043032206,-500.0,0.000261,2]
[393854884,1763043032216,-423.03095329,0.000261,2]
[393854886,1763043032226,-500.0,0.000261,2]
[393854888,1763043032239,-473.60389037,0.000261,2]
[393854891,1763043032248,-500.0,0.000261,2]
[393854894,1763043032258,-500.0,0.000261,2]
[393854897,1763043032268,-500.0,0.000261,2]
[393854900,1763043032279,-550.0,0.00026159,2]
[393854903,1763043032288,-500.0,0.0002616,2]
[393854906,1763043032298,-3292.0,0.00026182,2]
[393854909,1763043032308,-171.93,0.00026242,2]
[393854910,1763043032318,-2500.0,0.00026475,2]
[393854911,1763043032327,-500.0,0.00026575,2]
[393854912,1763043032338,-500.0,0.00026648,2]
[393854913,1763043032347,-500.0,0.00027214,2]
[393854914,1763043032356,-500.0,0.00027214,2]
[393854915,1763043032366,-500.0,0.00027214,2]
[393854916,1763043032375,-500.0,0.00027214,2]
[393854917,1763043032385,-502.69404323,0.00027214,2]
[393854918,1763043032395,-481.58279525,0.00027214,2]
[393854919,1763043032408,-18.41720475,0.00027214,2]
[393854920,1763043032418,-500.0,0.00027214,2]
[393854921,1763043032428,-344.50359387,0.00027214,2]
[393854922,1763043032438,-31.85620126,0.00027214,2]
[393854923,1763043032449,-468.45696396,0.00027214,2]
[393854924,1763043032463,-500.0,0.00027214,2]
[393854925,1763043032473,-500.0,0.000273,2]
[393854926,1763043032486,-6917.98923881,0.0002739,2]
[393854927,1763043032499,-2098.15379723,0.00027397,2]
[393854928,1763043032512,-234.84620277,0.00027397,2]
[393854929,1763043032521,-500.0,0.00027755,5]
[393854930,1763043032533,-500.0,0.00027755,5]
[393854931,1763043032543,-500.60167379,0.00027762,5]
[393854932,1763043032552,-351.4,0.00028038,2]
[393854933,1763043032564,-546.05757208,0.00028103,2]
[393854934,1763043032576,-605.94242792,0.00028103,2]
[393854935,1763043032586,-162.13,0.00028483,2]
[393854936,1763043032596,-501.22887208,0.00028647,2]
[393854941,1763043037798,-270.61227147,0.00028647,2]
[393854942,1763043037910,-860.15885645,0.00028647,2]
[393854943,1763043037920,-151.0,0.00028647,2]
[393854944,1763043037930,-151.0,0.00028991,2]
[393854945,1763043037940,-151.0,0.00028991,2]
[393854946,1763043037950,-151.0,0.00028991,2]
[393854947,1763043037960,-288.55593442,0.00028991,2]
[393854948,1763043037970,-151.0,0.00028991,2]
[393854949,1763043037980,-158.25999202,0.00028991,2]
[393854950,1763043037990,-2947.18,0.00029009,2]
[393854951,1763043037999,-7656.68,0.00029009,20]
[393854952,1763043038009,-150.99,0.00029009,2]
[393854953,1763043038019,-9999.99,0.00029009,2]
[393854954,1763043038029,-44641.5,0.00029009,10]
[393854955,1763043038038,-3643.29,0.00029009,2]
[393854956,1763043038048,-499.99,0.00029009,2]
[393854957,1763043038058,-8309.98,0.00029009,2]
[393854958,1763043038067,-187.22,0.00029009,2]
[393854959,1763043038077,-9999.99,0.00029009,2]
[393854960,1763043038087,-7358.67,0.00029009,2]
[393854961,1763043038097,-150.99,0.00029009,2]
[393854962,1763043038106,-1169.12,0.00029009,2]
[393854963,1763043038116,-1453.64,0.00029009,2]
[393854964,1763043038126,-1000.0,0.00030416,2]
[393854965,1763043038136,-1613.0,0.00030601,2]
[393854966,1763043038146,-2840.13,0.00030782,2]
[393854967,1763043038157,-1000.0,0.0003209,2]
[393854968,1763043038167,-2540.5,0.00032092,2]
[393854969,1763043038178,-1190.0,0.00032092,2]
[393854970,1763043038187,-906.0,0.00032092,2]
[393854971,1763043038198,-560.0,0.00032092,2]
[393854972,1763043038208,-2144.0,0.00032092,2]
[393854973,1763043038218,-3570.338,0.00032092,2]
[393854974,1763043038228,-326.0,0.00032301,2]
[393854975,1763043038238,-500.0,0.00032318,2]
[393854976,1763043038248,-312.29549531,0.00032666,30]
[393854977,1763043038258,-150.0,0.00032667,30]
[393854978,1763043038268,-150.0,0.00032667,30]
[393854979,1763043038277,-500.0,0.00032667,30]
[393854980,1763043038286,-500.0,0.00032667,30]
[393854981,1763043038296,-500.0,0.00032667,2]
[393854982,1763043038305,-456.0,0.00032667,30]
[393854983,1763043038315,-150.0,0.00032667,30]
[393854984,1763043038324,-500.0,0.00032667,2]
[393854985,1763043038334,-151.67420441,0.00032667,30]
[393854986,1763043038343,-150.0,0.00032667,30]
[393854987,1763043038353,-1311.0,0.00032667,30]
[393854988,1763043038362,-500.0,0.00032667,30]
[393854989,1763043038371,-150.0,0.00032667,2]
[393854990,1763043038381,-163.03237847,0.00032667,30]
[393854991,1763043038390,-150.0,0.00032667,2]
[393854992,1763043038399,-500.0,0.00032667,2]
[393854993,1763043038407,-150.0,0.00032667,30]
[393854994,1763043038417,-500.0,0.00032667,30]
[393854995,1763043038426,-150.0,0.00032667,2]
[393854996,1763043038436,-500.0,0.00032667,30]
[393854997,1763043038445,-150.0,0.00032667,2]
[393854998,1763043038455,-500.0,0.00032667,30]
[393854999,1763043038465,-500.0,0.00032667,30]
[393855000,1763043038475,-150.0,0.00032804,30]
[393855001,1763043038485,-500.0,0.00032804,30]
[393855002,1763043038499,-500.0,0.00032804,30]
[393855003,1763043038508,-500.0,0.00032804,2]
[393855004,1763043038518,-456.0,0.00032804,30]
[393855005,1763043038527,-155.57268512,0.00032804,30]
[393855006,1763043038538,-500.0,0.00032804,2]
[393855007,1763043038548,-150.0,0.00032804,30]
[393855008,1763043038558,-1311.0,0.00032804,30]
[393855009,1763043038567,-500.0,0.00032804,30]
[393855010,1763043038577,-500.0,0.00032804,2]
[393855011,1763043038586,-150.0,0.00032804,30]
[393855012,1763043038596,-500.0,0.00032804,30]
[393855013,1763043038605,-408.45790101,0.00032804,30]
[393855014,1763043038614,-500.0,0.00032804,30]
[393855015,1763043038624,-500.0,0.00032804,30]
[393855016,1763043038633,-150.0,0.00032877,30]
[393855017,1763043038644,-204.43135743,0.00032941,30]
[393855018,1763043038654,-230.57353987,0.00032941,30]
[393855019,1763043038664,-500.0,0.00032941,30]
[393855020,1763043038673,-500.0,0.00032941,2]
[393855021,1763043038683,-456.0,0.00032941,30]
[393855022,1763043038692,-500.0,0.00032941,2]
[393855023,1763043038701,-150.0,0.00032941,30]
[393855024,1763043038711,-1311.0,0.00032941,30]
[393855025,1763043038720,-173.11884486,0.00032941,30]
[393855026,1763043038730,-500.0,0.00032941,2]
[393855027,1763043038739,-387.57070207,0.00032941,30]
[393855028,1763043038749,-150.0,0.00032941,30]
[393855029,1763043038759,-500.0,0.00032941,30]
[393855030,1763043038768,-500.0,0.00032941,30]
[393855031,1763043038778,-500.0,0.00032941,30]
[393855032,1763043038787,-187.06495887,0.00033014,30]
[393855033,1763043038797,-500.0,0.00033078,30]
[393855034,1763043038806,-500.0,0.00033078,2]
[393855035,1763043038816,-456.0,0.00033078,30]
[393855036,1763043038826,-500.0,0.00033078,2]
[393855037,1763043038835,-150.0,0.00033078,30]
[393855038,1763043038845,-1311.0,0.00033078,30]
[393855039,1763043038855,-310.98736975,0.00033078,2]
[393855040,1763043038864,-150.0,0.00033078,30]
[393855041,1763043038874,-500.0,0.00033078,30]
[393855042,1763043038884,-500.0,0.00033078,30]
[393855043,1763043038894,-500.0,0.00033078,30]
[393855044,1763043038903,-250.0,0.00033088,2]
[393855045,1763043038913,-1000.0,0.00033088,2]
[393855046,1763043038923,-200.0,0.00033088,2]
[393855047,1763043038933,-503.42717423,0.000331,5]
[393855048,1763043038943,-500.0,0.000331,5]
[393855049,1763043038952,-500.0,0.00033215,30]
[393855050,1763043038962,-500.0,0.00033215,2]
[393855051,1763043038971,-456.0,0.00033215,30]
[393855052,1763043038981,-500.0,0.00033215,2]
[393855053,1763043038991,-168.34038152,0.00033215,30]
[393855054,1763043039001,-1311.0,0.00033215,30]
[393855055,1763043039012,-150.0,0.00033215,30]
[393855056,1763043039200,-500.0,0.00033215,30]
[393855057,1763043039213,-500.0,0.00033215,30]
[393855058,1763043039223,-500.0,0.00033215,30]
[393855059,1763043039233,-500.0,0.00033233,5]
[393855060,1763043039243,-242.0,0.00033322,2]
[393855061,1763043039253,-255.03131093,0.00033352,30]
[393855062,1763043039262,-500.0,0.00033352,2]
[393855063,1763043039272,-456.0,0.00033352,30]
[393855064,1763043039282,-500.0,0.00033352,2]
[393855065,1763043039292,-1311.0,0.00033352,30]
[393855066,1763043039302,-250.0,0.00033352,30]
[393855067,1763043039312,-500.0,0.00033352,30]
[393855068,1763043039321,-500.0,0.00033352,30]
[393855069,1763043039331,-500.0,0.00033352,30]
[393855070,1763043039341,-1436.457,0.00033479,35]
[393855071,1763043039350,-500.0,0.00033489,2]
[393855072,1763043039359,-456.0,0.00033489,30]
[393855073,1763043039369,-500.0,0.00033489,2]
[393855074,1763043039378,-1311.0,0.00033489,30]
[393855075,1763043039388,-220.24098133,0.00033489,30]
[393855076,1763043039397,-500.0,0.00033489,30]
[393855077,1763043039406,-500.0,0.00033489,30]
[393855078,1763043039416,-500.0,0.00033527,5]
[393855079,1763043039426,-500.0,0.00033626,2]
[393855080,1763043039436,-456.0,0.00033626,30]
[393855081,1763043039445,-500.0,0.00033626,2]
[393855082,1763043039454,-1311.0,0.00033626,30]
[393855083,1763043039463,-500.0,0.00033626,30]
[393855084,1763043039472,-500.0,0.00033626,30]
[393855085,1763043039482,-500.0,0.00033626,30]
[393855086,1763043039496,-500.0,0.00033763,2]
[393855087,1763043039507,-456.0,0.00033763,30]
[393855088,1763043039516,-500.0,0.00033763,2]
[393855089,1763043039526,-1311.0,0.00033763,30]
[393855090,1763043039536,-500.0,0.00033763,30]
[393855091,1763043039545,-500.0,0.00033763,30]
[393855092,1763043039555,-500.0,0.00033763,30]
[393855093,1763043039565,-511.52144643,0.00033781,5]
[393855094,1763043039574,-500.0,0.000339,2]
[393855095,1763043039583,-456.0,0.000339,30]
[393855096,1763043039593,-500.0,0.000339,2]
[393855097,1763043039603,-1311.0,0.000339,30]
[393855098,1763043039612,-500.0,0.000339,30]
[393855099,1763043039622,-500.0,0.000339,30]
[393855100,1763043039632,-500.0,0.000339,30]
[393855101,1763043039641,-193.51810773,0.00034037,2]
[393855102,1763043039650,-456.0,0.00034037,30]
[393855103,1763043039660,-500.0,0.00034037,2]
[393855104,1763043039670,-1311.0,0.00034037,30]
[393855105,1763043039679,-500.0,0.00034037,30]
[393855106,1763043039690,-500.0,0.00034037,30]
[393855107,1763043039699,-500.0,0.00034037,30]
[393855108,1763043039709,-456.0,0.00034174,30]
[393855109,1763043039719,-500.0,0.00034174,2]
[393855110,1763043039729,-1311.0,0.00034174,30]
[393855111,1763043039738,-500.0,0.00034174,30]
[393855112,1763043039748,-500.0,0.00034174,30]